[Event "*** Titled Tuesday Blitz"]
[Site "Chess.com"]
[Date "2018.07.03"]
[Round "4"]
[White "abubakrtagelsir"]
[Black "Margency"]
[Result "0-1"]
[WhiteElo "2448"]
[BlackElo "2659"]
[TimeControl "180+2"]
[EndTime "13:50:50 PDT"]
[Termination "Margency won by resignation"]

1. e4 {[%clk 0:03:00]} 1... c5 {[%clk 0:03:00.5]} 2. Nc3 {[%clk 0:03:00.1]} 2...
d6 {[%clk 0:03:01.5]} 3. f4 {[%clk 0:03:00.6]} 3... Nc6 {[%clk 0:03:01.8]} 4.
Nf3 {[%clk 0:03:01.3]} 4... g6 {[%clk 0:03:02.7]} 5. Bb5 {[%clk 0:03:01.7]} 5...
Bd7 {[%clk 0:03:03.5]} 6. Bxc6 {[%clk 0:03:00.1]} 6... Bxc6 {[%clk 0:03:04.5]}
7. O-O {[%clk 0:03:01.1]} 7... Bg7 {[%clk 0:03:05.3]} 8. d3 {[%clk 0:03:01.9]}
8... f5 {[%clk 0:02:54.3]} 9. Ng5 {[%clk 0:03:00]} 9... Bxc3 {[%clk 0:02:50.4]}
10. bxc3 {[%clk 0:02:59.3]} 10... Nf6 {[%clk 0:02:51.9]} 11. e5 {[%clk
0:02:56.8]} 11... dxe5 {[%clk 0:02:47.1]} 12. fxe5 {[%clk 0:02:57]} 12... Qd5
{[%clk 0:02:40.9]} 13. Qe2 {[%clk 0:02:53.6]} 13... Nd7 {[%clk 0:02:40.3]} 14.
Bf4 {[%clk 0:02:46.4]} 14... h6 {[%clk 0:02:27.9]} 15. Nf3 {[%clk 0:02:36.3]}
15... Nf8 {[%clk 0:02:24.5]} 16. c4 {[%clk 0:02:27.3]} 16... Qd7 {[%clk
0:02:22.6]} 17. e6 {[%clk 0:02:19.4]} 17... Qxe6 {[%clk 0:02:21.1]} 18. Qf2
{[%clk 0:02:16.6]} 18... Nd7 {[%clk 0:02:14.4]} 19. Rae1 {[%clk 0:02:15.5]}
19... Qf6 {[%clk 0:02:10.2]} 20. Ne5 {[%clk 0:02:15.3]} 20... Rh7 {[%clk
0:01:42.7]} 21. Nxd7 {[%clk 0:02:07.5]} 21... Bxd7 {[%clk 0:01:43.6]} 22. Qxc5
{[%clk 0:02:07.9]} 22... Qb6 {[%clk 0:01:44.6]} 23. Be3 {[%clk 0:02:02.7]} 23...
Qxc5 {[%clk 0:01:42.2]} 24. Bxc5 {[%clk 0:02:03.5]} 24... b6 {[%clk 0:01:43.6]}
25. Ba3 {[%clk 0:02:04]} 25... e6 {[%clk 0:01:41.2]} 26. Re5 {[%clk 0:02:02.9]}
26... O-O-O {[%clk 0:01:35.4]} 27. c5 {[%clk 0:02:02.7]} 27... Re8 {[%clk
0:01:32.7]} 28. cxb6 {[%clk 0:02:02.7]} 28... axb6 {[%clk 0:01:34.2]} 29. Rb1
{[%clk 0:02:02.9]} 29... Kc7 {[%clk 0:01:27]} 30. Rb3 {[%clk 0:01:57.2]} 30...
Rf7 {[%clk 0:01:17.7]} 31. Rc3+ {[%clk 0:01:56.3]} 31... Kb7 {[%clk 0:01:18.8]}
32. Bd6 {[%clk 0:01:54.9]} 32... Rc8 {[%clk 0:01:19.2]} 33. Rxc8 {[%clk
0:01:55.3]} 33... Kxc8 {[%clk 0:01:20.3]} 34. Re1 {[%clk 0:01:52]} 34... Kb7
{[%clk 0:01:20.4]} 35. Rb1 {[%clk 0:01:50.6]} 35... Kc6 {[%clk 0:01:21]} 36. Be5
{[%clk 0:01:51.3]} 36... g5 {[%clk 0:01:20.8]} 37. Bd4 {[%clk 0:01:50.4]} 37...
b5 {[%clk 0:01:21.2]} 38. a4 {[%clk 0:01:50.9]} 38... bxa4 {[%clk 0:01:22.2]}
39. c4 {[%clk 0:01:50.5]} 39... f4 {[%clk 0:01:21.1]} 40. Rb6+ {[%clk
0:01:50.4]} 40... Kc7 {[%clk 0:01:21.7]} 41. Ra6 {[%clk 0:01:50.2]} 41... Rf5
{[%clk 0:01:21.5]} 42. Ra7+ {[%clk 0:01:47.1]} 42... Kc8 {[%clk 0:01:21.2]} 43.
Kf2 {[%clk 0:01:48.1]} 43... h5 {[%clk 0:01:16.5]} 44. h4 {[%clk 0:01:45.1]}
44... g4 {[%clk 0:01:16.7]} 45. Bb6 {[%clk 0:01:43.2]} 45... g3+ {[%clk
0:01:08.1]} 46. Kf1 {[%clk 0:01:43.3]} 46... Rf7 {[%clk 0:01:03.7]} 47. d4
{[%clk 0:01:39.9]} 47... f3 {[%clk 0:00:53.4]} 48. gxf3 {[%clk 0:01:40.3]} 48...
Rxf3+ {[%clk 0:00:54.1]} 49. Kg2 {[%clk 0:01:41.5]} 49... Rb3 {[%clk 0:00:55.1]}
50. Ba5 {[%clk 0:01:36.8]} 50... Bc6+ {[%clk 0:00:54.6]} 51. d5 {[%clk
0:01:37.3]} 51... Bb7 {[%clk 0:00:53.6]} 52. Be1 {[%clk 0:01:34.5]} 52... exd5
{[%clk 0:00:54.3]} 53. Rxa4 {[%clk 0:01:27.2]} 53... dxc4+ {[%clk 0:00:53.7]}
54. Kh3 {[%clk 0:01:28.1]} 54... g2+ {[%clk 0:00:53.5]} 55. Kh2 {[%clk
0:01:28.9]} 55... Rh3+ {[%clk 0:00:54.5]} 56. Kg1 {[%clk 0:01:29.8]} 56... Rh1+
{[%clk 0:00:55.6]} 57. Kf2 {[%clk 0:01:31.2]} 57... g1=Q+ {[%clk 0:00:56.4]} 0-1

[Event "*** Titled Tuesday Blitz"]
[Site "Chess.com"]
[Date "2018.07.03"]
[Round "4"]
[White "Last7Samurai"]
[Black "Msb2"]
[Result "1-0"]
[WhiteElo "2614"]
[BlackElo "2714"]
[TimeControl "180+2"]
[EndTime "13:50:52 PDT"]
[Termination "Last7Samurai won by resignation"]

1. Nf3 {[%clk 0:03:01.9]} 1... d5 {[%clk 0:02:59.4]} 2. g3 {[%clk 0:03:02.5]}
2... Bg4 {[%clk 0:03:00.3]} 3. Bg2 {[%clk 0:03:01.7]} 3... c6 {[%clk 0:03:01.7]}
4. O-O {[%clk 0:03:02.1]} 4... Nd7 {[%clk 0:03:03]} 5. d4 {[%clk 0:03:02.7]}
5... e6 {[%clk 0:03:02.6]} 6. Nbd2 {[%clk 0:03:03.3]} 6... Bxf3 {[%clk
0:03:00.5]} 7. Bxf3 {[%clk 0:03:02.7]} 7... f5 {[%clk 0:03:02]} 8. c4 {[%clk
0:03:00.5]} 8... Ngf6 {[%clk 0:02:58]} 9. Qb3 {[%clk 0:03:01.1]} 9... Rb8 {[%clk
0:02:59.3]} 10. Qe3 {[%clk 0:03:00.5]} 10... Kf7 {[%clk 0:02:57.7]} 11. Bg2
{[%clk 0:02:58.8]} 11... h6 {[%clk 0:02:53.2]} 12. Nf3 {[%clk 0:02:57.7]} 12...
Ng4 {[%clk 0:02:31.7]} 13. Qb3 {[%clk 0:02:55.4]} 13... Bd6 {[%clk 0:02:31.3]}
14. h3 {[%clk 0:02:55.2]} 14... Ngf6 {[%clk 0:02:32.6]} 15. Qc2 {[%clk
0:02:43.9]} 15... Re8 {[%clk 0:02:25.1]} 16. b3 {[%clk 0:02:31.5]} 16... Ne4
{[%clk 0:02:20.9]} 17. Bb2 {[%clk 0:02:27.7]} 17... Kg8 {[%clk 0:02:21.2]} 18.
Rad1 {[%clk 0:02:18.7]} 18... Qf6 {[%clk 0:02:20.5]} 19. Ne1 {[%clk 0:02:11.1]}
19... h5 {[%clk 0:02:12.2]} 20. h4 {[%clk 0:02:10.4]} 20... g5 {[%clk
0:02:05.1]} 21. hxg5 {[%clk 0:02:08.5]} 21... Qxg5 {[%clk 0:02:07]} 22. Nf3
{[%clk 0:02:06.1]} 22... Qf6 {[%clk 0:02:06.2]} 23. Bc1 {[%clk 0:02:04.7]} 23...
Kf7 {[%clk 0:02:02.8]} 24. Bf4 {[%clk 0:01:43]} 24... Bxf4 {[%clk 0:02:01.9]}
25. gxf4 {[%clk 0:01:44.8]} 25... Rg8 {[%clk 0:01:57.3]} 26. Kh2 {[%clk
0:01:44.5]} 26... Rg4 {[%clk 0:01:58.2]} 27. e3 {[%clk 0:01:31.1]} 27... Rbg8
{[%clk 0:01:38.8]} 28. Bh3 {[%clk 0:01:29.8]} 28... Kf8 {[%clk 0:01:25.9]} 29.
b4 {[%clk 0:01:19.6]} 29... Qe7 {[%clk 0:01:17]} 30. b5 {[%clk 0:01:16.3]} 30...
R8g6 {[%clk 0:01:00]} 31. bxc6 {[%clk 0:01:08.3]} 31... bxc6 {[%clk 0:01:01.9]}
32. cxd5 {[%clk 0:01:08.9]} 32... exd5 {[%clk 0:00:58.7]} 33. Rb1 {[%clk
0:01:03.8]} 33... Kg7 {[%clk 0:00:47.6]} 34. Rb7 {[%clk 0:00:58.6]} 34... Kh6
{[%clk 0:00:48.7]} 35. Bxg4 {[%clk 0:00:34.6]} 35... fxg4 {[%clk 0:00:25]} 36.
Rxd7 {[%clk 0:00:30.9]} 36... Qxd7 {[%clk 0:00:14.8]} 37. Ne5 {[%clk 0:00:31.9]}
37... Qd6 {[%clk 0:00:03.7]} 38. Nf7+ {[%clk 0:00:31.5]} 38... Kg7 {[%clk
0:00:04.5]} 39. Nxd6 {[%clk 0:00:33.1]} 39... Rxd6 {[%clk 0:00:06.2]} 1-0

[Event "*** Titled Tuesday Blitz"]
[Site "Chess.com"]
[Date "2018.07.03"]
[Round "4"]
[White "pKiLz5Rn9b"]
[Black "GMMatamoros"]
[Result "1-0"]
[WhiteElo "2734"]
[BlackElo "2516"]
[TimeControl "180+2"]
[EndTime "13:50:53 PDT"]
[Termination "pKiLz5Rn9b won on time"]

1. Nf3 {[%clk 0:02:55.6]} 1... Nf6 {[%clk 0:02:59.9]} 2. b3 {[%clk 0:02:55.9]}
2... g6 {[%clk 0:03:00.5]} 3. Bb2 {[%clk 0:02:57.2]} 3... Bg7 {[%clk 0:03:02]}
4. g3 {[%clk 0:02:58.7]} 4... d6 {[%clk 0:03:01.8]} 5. d4 {[%clk 0:02:59.7]}
5... c5 {[%clk 0:03:02.9]} 6. Bg2 {[%clk 0:02:58.9]} 6... cxd4 {[%clk
0:03:01.1]} 7. Nxd4 {[%clk 0:03:00.1]} 7... d5 {[%clk 0:02:59.5]} 8. O-O {[%clk
0:03:00.9]} 8... O-O {[%clk 0:02:59.9]} 9. c4 {[%clk 0:03:02]} 9... dxc4 {[%clk
0:03:00.9]} 10. Nd2 {[%clk 0:03:03.1]} 10... cxb3 {[%clk 0:02:42.4]} 11. Qxb3
{[%clk 0:03:03.8]} 11... Nc6 {[%clk 0:02:34.4]} 12. Nxc6 {[%clk 0:02:59.3]}
12... bxc6 {[%clk 0:02:36.3]} 13. Rfd1 {[%clk 0:02:52.4]} 13... Be6 {[%clk
0:02:22.7]} 14. Qc2 {[%clk 0:02:52.6]} 14... Qb6 {[%clk 0:02:17.1]} 15. Nb3
{[%clk 0:02:39.7]} 15... Rad8 {[%clk 0:01:56.3]} 16. Qxc6 {[%clk 0:02:31.4]}
16... Ng4 {[%clk 0:01:19.6]} 17. Qxb6 {[%clk 0:02:27.6]} 17... axb6 {[%clk
0:01:21.5]} 18. Bxg7 {[%clk 0:02:24.4]} 18... Kxg7 {[%clk 0:01:23.4]} 19. Nd4
{[%clk 0:02:20.6]} 19... Bd5 {[%clk 0:00:39.4]} 20. Nf5+ {[%clk 0:02:01.8]}
20... gxf5 {[%clk 0:00:39.9]} 21. Bxd5 {[%clk 0:02:01.5]} 21... Nf6 {[%clk
0:00:36.8]} 22. Bb3 {[%clk 0:01:58.8]} 22... Ne4 {[%clk 0:00:37.6]} 23. Rac1
{[%clk 0:01:57.1]} 23... Nc5 {[%clk 0:00:32.2]} 24. Bc4 {[%clk 0:01:57]} 24...
Kf6 {[%clk 0:00:25.4]} 25. Bd5 {[%clk 0:01:47.8]} 25... e6 {[%clk 0:00:22.3]}
26. Bf3 {[%clk 0:01:49]} 26... h6 {[%clk 0:00:21]} 27. e3 {[%clk 0:01:43.4]}
27... Ne4 {[%clk 0:00:19.5]} 28. Rc2 {[%clk 0:01:21]} 28... Rxd1+ {[%clk
0:00:12.3]} 29. Bxd1 {[%clk 0:01:22.9]} 29... Rd8 {[%clk 0:00:13.6]} 30. Be2
{[%clk 0:01:23.3]} 30... Rd2 {[%clk 0:00:07.8]} 31. Rxd2 {[%clk 0:01:24.4]}
31... Nxd2 {[%clk 0:00:09.7]} 32. f4 {[%clk 0:01:25.6]} 32... Ne4 {[%clk
0:00:10.1]} 33. Bc4 {[%clk 0:01:20.5]} 33... Ke7 {[%clk 0:00:09]} 34. Kg2 {[%clk
0:01:17.1]} 34... Kd6 {[%clk 0:00:09.9]} 35. Kh3 {[%clk 0:01:16.3]} 35... Kc5
{[%clk 0:00:09.4]} 36. Bb3 {[%clk 0:01:14.3]} 36... Kb4 {[%clk 0:00:08.9]} 37.
g4 {[%clk 0:01:09.3]} 37... fxg4+ {[%clk 0:00:06.1]} 38. Kxg4 {[%clk 0:01:09.1]}
38... Nf6+ {[%clk 0:00:06.4]} 39. Kf3 {[%clk 0:01:08.8]} 39... Kc3 {[%clk
0:00:03.4]} 40. e4 {[%clk 0:01:10]} 40... Kd4 {[%clk 0:00:04.4]} 41. e5 {[%clk
0:01:11.4]} 41... Ne4 {[%clk 0:00:03]} 42. Ba4 {[%clk 0:01:00.8]} 1-0

[Event "*** Titled Tuesday Blitz"]
[Site "Chess.com"]
[Date "2018.07.03"]
[Round "4"]
[White "jeetjain"]
[Black "GhostOfGreenval"]
[Result "1-0"]
[WhiteElo "2442"]
[BlackElo "2451"]
[TimeControl "180+2"]
[EndTime "13:50:54 PDT"]
[Termination "jeetjain won on time"]

1. e4 {[%clk 0:03:01.9]} 1... e5 {[%clk 0:02:58.1]} 2. Nf3 {[%clk 0:03:02.6]}
2... Nc6 {[%clk 0:02:59.6]} 3. Bc4 {[%clk 0:03:03.6]} 3... Bc5 {[%clk
0:02:59.3]} 4. c3 {[%clk 0:03:04.7]} 4... Nf6 {[%clk 0:02:59.8]} 5. b4 {[%clk
0:03:05.8]} 5... Bb6 {[%clk 0:01:52.6]} 6. d3 {[%clk 0:03:06.4]} 6... d6 {[%clk
0:01:50.8]} 7. a4 {[%clk 0:03:07.2]} 7... a6 {[%clk 0:01:48.9]} 8. O-O {[%clk
0:03:07.8]} 8... h6 {[%clk 0:01:48.5]} 9. Be3 {[%clk 0:03:08.9]} 9... Ba7 {[%clk
0:01:47.3]} 10. Nbd2 {[%clk 0:03:09.2]} 10... Qe7 {[%clk 0:01:47.9]} 11. Qc2
{[%clk 0:03:07.6]} 11... Bd7 {[%clk 0:01:48]} 12. b5 {[%clk 0:03:07.7]} 12...
Nb8 {[%clk 0:01:35.7]} 13. Rfb1 {[%clk 0:03:02.7]} 13... Bxe3 {[%clk 0:01:35.2]}
14. fxe3 {[%clk 0:03:04.6]} 14... b6 {[%clk 0:01:37.1]} 15. bxa6 {[%clk
0:03:01.5]} 15... Nxa6 {[%clk 0:01:38.1]} 16. a5 {[%clk 0:03:03]} 16... Nb8
{[%clk 0:01:15.7]} 17. axb6 {[%clk 0:02:58.7]} 17... Rxa1 {[%clk 0:01:16.6]} 18.
Rxa1 {[%clk 0:02:59.5]} 18... cxb6 {[%clk 0:01:17.9]} 19. Qb3 {[%clk 0:02:54.9]}
19... O-O {[%clk 0:01:09.7]} 20. Qxb6 {[%clk 0:02:55.3]} 20... Nc6 {[%clk
0:01:09.1]} 21. Qb3 {[%clk 0:02:43.7]} 21... Rb8 {[%clk 0:01:07.8]} 22. Qc2
{[%clk 0:02:44.5]} 22... Be6 {[%clk 0:01:07.6]} 23. h3 {[%clk 0:02:42.5]} 23...
d5 {[%clk 0:01:08.7]} 24. exd5 {[%clk 0:02:43]} 24... Nxd5 {[%clk 0:01:09.9]}
25. Bxd5 {[%clk 0:02:44.1]} 25... Bxd5 {[%clk 0:01:11.8]} 26. e4 {[%clk
0:02:44.8]} 26... Qc5+ {[%clk 0:01:09.1]} 27. Kh2 {[%clk 0:02:42.1]} 27... Be6
{[%clk 0:01:04.8]} 28. Rc1 {[%clk 0:02:38.5]} 28... Rd8 {[%clk 0:01:03.8]} 29.
Nf1 {[%clk 0:02:22.6]} 29... f6 {[%clk 0:00:56.4]} 30. Qe2 {[%clk 0:02:15]}
30... Qb5 {[%clk 0:00:51.2]} 31. c4 {[%clk 0:02:03.4]} 31... Qb3 {[%clk
0:00:52.2]} 32. Rd1 {[%clk 0:02:03.7]} 32... Bxc4 {[%clk 0:00:53.4]} 33. Ne1
{[%clk 0:00:50.8]} 33... Ba6 {[%clk 0:00:32.6]} 34. Ne3 {[%clk 0:00:50.7]} 34...
Nb4 {[%clk 0:00:29.6]} 35. Nf5 {[%clk 0:00:43.8]} 35... Bc8 {[%clk 0:00:18.6]}
36. Ne7+ {[%clk 0:00:40]} 36... Kf7 {[%clk 0:00:19]} 37. Nxc8 {[%clk 0:00:40.9]}
37... Rxc8 {[%clk 0:00:20.9]} 38. d4 {[%clk 0:00:40.7]} 38... exd4 {[%clk
0:00:19]} 39. Rxd4 {[%clk 0:00:41.4]} 1-0

[Event "*** Titled Tuesday Blitz"]
[Site "Chess.com"]
[Date "2018.07.03"]
[Round "4"]
[White "GM_dmitrij"]
[Black "attack2mateU"]
[Result "1-0"]
[WhiteElo "2820"]
[BlackElo "2667"]
[TimeControl "180+2"]
[EndTime "13:51:12 PDT"]
[Termination "GM_dmitrij won on time"]

1. e4 {[%clk 0:03:01]} 1... c5 {[%clk 0:02:58.5]} 2. Nf3 {[%clk 0:03:01.6]} 2...
d6 {[%clk 0:03:00]} 3. Bb5+ {[%clk 0:03:02.7]} 3... Nd7 {[%clk 0:03:00.1]} 4. a4
{[%clk 0:03:02.3]} 4... Nf6 {[%clk 0:02:59.6]} 5. Nc3 {[%clk 0:03:02.7]} 5... g6
{[%clk 0:02:59.3]} 6. a5 {[%clk 0:03:03.8]} 6... Bg7 {[%clk 0:02:58.2]} 7. a6
{[%clk 0:03:05]} 7... O-O {[%clk 0:02:58.9]} 8. O-O {[%clk 0:03:05]} 8... Ne8
{[%clk 0:02:52.7]} 9. d4 {[%clk 0:02:46.8]} 9... cxd4 {[%clk 0:02:07.5]} 10.
Nxd4 {[%clk 0:02:48.7]} 10... Nc7 {[%clk 0:02:07.8]} 11. axb7 {[%clk 0:02:25.3]}
11... Bxb7 {[%clk 0:02:09.7]} 12. Nc6 {[%clk 0:02:00.7]} 12... Qe8 {[%clk
0:02:07.7]} 13. Na5 {[%clk 0:01:31.2]} 13... Bxc3 {[%clk 0:01:55.4]} 14. Bxd7
{[%clk 0:01:28.6]} 14... Qxd7 {[%clk 0:01:55.1]} 15. Nxb7 {[%clk 0:01:30.1]}
15... Bg7 {[%clk 0:01:51.2]} 16. Na5 {[%clk 0:01:27.1]} 16... Qb5 {[%clk
0:01:39.4]} 17. Ra2 {[%clk 0:01:22.8]} 17... Ne6 {[%clk 0:01:27.8]} 18. Qd5
{[%clk 0:01:17.7]} 18... a6 {[%clk 0:00:56.5]} 19. c4 {[%clk 0:01:10.7]} 19...
Qxd5 {[%clk 0:00:53.3]} 20. exd5 {[%clk 0:01:06.9]} 20... Nd4 {[%clk 0:00:54.7]}
21. Be3 {[%clk 0:01:04.7]} 21... Rfb8 {[%clk 0:00:43.2]} 22. Bxd4 {[%clk
0:01:03.5]} 22... Bxd4 {[%clk 0:00:44.2]} 23. Rb1 {[%clk 0:00:49]} 23... Rb4
{[%clk 0:00:35.5]} 24. b3 {[%clk 0:00:43.4]} 24... Bf6 {[%clk 0:00:33.5]} 25.
Nc6 {[%clk 0:00:42.5]} 25... Rb6 {[%clk 0:00:32.8]} 26. b4 {[%clk 0:00:42.4]}
26... e6 {[%clk 0:00:33]} 27. b5 {[%clk 0:00:29.6]} 27... exd5 {[%clk
0:00:31.9]} 28. cxd5 {[%clk 0:00:31.5]} 28... Kg7 {[%clk 0:00:24.4]} 29. Kf1
{[%clk 0:00:32.1]} 29... Bc3 {[%clk 0:00:10.4]} 30. Rb3 {[%clk 0:00:31.5]} 30...
Bf6 {[%clk 0:00:09.3]} 31. g3 {[%clk 0:00:31.2]} 31... g5 {[%clk 0:00:10.4]} 32.
g4 {[%clk 0:00:31.2]} 32... Kg6 {[%clk 0:00:10.8]} 33. h3 {[%clk 0:00:31.1]}
33... h5 {[%clk 0:00:12.4]} 34. Rb4 {[%clk 0:00:26.1]} 34... hxg4 {[%clk
0:00:11.3]} 35. hxg4 {[%clk 0:00:28]} 35... Bc3 {[%clk 0:00:12.2]} 36. Rc4
{[%clk 0:00:25.4]} 36... Bf6 {[%clk 0:00:12.4]} 37. Rb4 {[%clk 0:00:25.8]} 37...
Bc3 {[%clk 0:00:12.3]} 38. Rb3 {[%clk 0:00:27.4]} 38... Bf6 {[%clk 0:00:13.4]}
39. Kg2 {[%clk 0:00:28.9]} 39... Kg7 {[%clk 0:00:05.2]} 40. Ra5 {[%clk
0:00:29.3]} 40... Kg6 {[%clk 0:00:06.2]} 41. Kf3 {[%clk 0:00:30.8]} 41... Bd8
{[%clk 0:00:04.6]} 42. Rba3 {[%clk 0:00:24.8]} 42... Rb7 {[%clk 0:00:03.3]} 43.
Rxa6 {[%clk 0:00:23.9]} 1-0

[Event "*** Titled Tuesday Blitz"]
[Site "Chess.com"]
[Date "2018.07.03"]
[Round "4"]
[White "penguingm1"]
[Black "PaulfromSPb"]
[Result "1-0"]
[WhiteElo "2765"]
[BlackElo "2518"]
[TimeControl "180+2"]
[EndTime "13:51:15 PDT"]
[Termination "penguingm1 won by checkmate"]

1. d4 {[%clk 0:02:58.1]} 1... Nf6 {[%clk 0:03:00.3]} 2. c4 {[%clk 0:02:58.8]}
2... e6 {[%clk 0:03:01]} 3. Nc3 {[%clk 0:02:59.4]} 3... Bb4 {[%clk 0:03:01.2]}
4. Qc2 {[%clk 0:03:00.6]} 4... O-O {[%clk 0:03:01.4]} 5. Nf3 {[%clk 0:03:00.9]}
5... b6 {[%clk 0:02:50.2]} 6. e4 {[%clk 0:03:01.4]} 6... Bb7 {[%clk 0:02:37.7]}
7. Bd3 {[%clk 0:03:00.1]} 7... Ne8 {[%clk 0:02:33.3]} 8. e5 {[%clk 0:02:59.9]}
8... f5 {[%clk 0:02:32.3]} 9. d5 {[%clk 0:02:31.6]} 9... Bxc3+ {[%clk
0:02:21.9]} 10. bxc3 {[%clk 0:02:31.9]} 10... Na6 {[%clk 0:02:21.7]} 11. Ba3
{[%clk 0:02:11.1]} 11... Nc5 {[%clk 0:02:21.8]} 12. Bxc5 {[%clk 0:02:11]} 12...
bxc5 {[%clk 0:02:23.7]} 13. Rb1 {[%clk 0:02:12.3]} 13... Rb8 {[%clk 0:02:23.9]}
14. O-O {[%clk 0:02:11.9]} 14... g6 {[%clk 0:01:19.7]} 15. Rfd1 {[%clk
0:01:51.6]} 15... exd5 {[%clk 0:01:14.2]} 16. Be2 {[%clk 0:01:27.5]} 16... d4
{[%clk 0:00:58]} 17. cxd4 {[%clk 0:01:15.9]} 17... Be4 {[%clk 0:00:58.9]} 18.
Rxb8 {[%clk 0:01:16.9]} 18... Qxb8 {[%clk 0:00:59.3]} 19. Qa4 {[%clk 0:01:18]}
19... Bc6 {[%clk 0:00:49.8]} 20. Qa3 {[%clk 0:01:16.8]} 20... Bxf3 {[%clk
0:00:41.7]} 21. Bxf3 {[%clk 0:01:14.1]} 21... cxd4 {[%clk 0:00:42.9]} 22. Rxd4
{[%clk 0:01:13.8]} 22... d6 {[%clk 0:00:35]} 23. h3 {[%clk 0:01:06.6]} 23...
Qb1+ {[%clk 0:00:31.9]} 24. Rd1 {[%clk 0:01:06.9]} 24... Qb6 {[%clk 0:00:32.5]}
25. exd6 {[%clk 0:01:06.5]} 25... cxd6 {[%clk 0:00:32]} 26. Bd5+ {[%clk
0:01:06.8]} 26... Kg7 {[%clk 0:00:33.1]} 27. Re1 {[%clk 0:01:02.1]} 27... Qc7
{[%clk 0:00:30.4]} 28. Rb1 {[%clk 0:00:56.3]} 28... Qc5 {[%clk 0:00:26.4]} 29.
Qc3+ {[%clk 0:00:51.1]} 29... Nf6 {[%clk 0:00:24.1]} 30. Rb5 {[%clk 0:00:45.6]}
30... Qc8 {[%clk 0:00:22.3]} 31. Rb7+ {[%clk 0:00:44.5]} 31... Kh6 {[%clk
0:00:23.4]} 32. Qe3+ {[%clk 0:00:41.1]} 32... g5 {[%clk 0:00:23.9]} 33. Qe7
{[%clk 0:00:33.5]} 33... Qe8 {[%clk 0:00:14]} 34. Qg7+ {[%clk 0:00:30.5]} 34...
Kh5 {[%clk 0:00:14.4]} 35. Re7 {[%clk 0:00:32.1]} 35... Qd8 {[%clk 0:00:11.7]}
36. Bf3+ {[%clk 0:00:32.7]} 36... g4 {[%clk 0:00:12.4]} 37. hxg4+ {[%clk
0:00:33.4]} 37... fxg4 {[%clk 0:00:13.6]} 38. Re6 {[%clk 0:00:20.3]} 38... gxf3
{[%clk 0:00:12.4]} 39. g4+ {[%clk 0:00:17.1]} 39... Nxg4 {[%clk 0:00:09.5]} 40.
Qxh7+ {[%clk 0:00:17]} 40... Kg5 {[%clk 0:00:09.9]} 41. Qg6+ {[%clk 0:00:15.6]}
41... Kh4 {[%clk 0:00:10.1]} 42. Re4 {[%clk 0:00:12]} 42... Qd7 {[%clk
0:00:09.5]} 43. Qh6# {[%clk 0:00:11.5]} 1-0

[Event "*** Titled Tuesday Blitz"]
[Site "Chess.com"]
[Date "2018.07.03"]
[Round "4"]
[White "moro182"]
[Black "Zaven_ChessMood"]
[Result "1/2-1/2"]
[WhiteElo "2628"]
[BlackElo "2873"]
[TimeControl "180+2"]
[EndTime "13:51:28 PDT"]
[Termination "Game drawn by repetition"]

1. d4 {[%clk 0:02:56.7]} 1... Nf6 {[%clk 0:02:55.8]} 2. c4 {[%clk 0:02:57.2]}
2... c5 {[%clk 0:02:54.8]} 3. Nf3 {[%clk 0:02:57.5]} 3... cxd4 {[%clk
0:02:54.6]} 4. Nxd4 {[%clk 0:02:59.4]} 4... Nc6 {[%clk 0:02:54.6]} 5. Nc3 {[%clk
0:03:00.4]} 5... e6 {[%clk 0:02:55.3]} 6. a3 {[%clk 0:03:00.8]} 6... Be7 {[%clk
0:02:53.6]} 7. e4 {[%clk 0:03:01.6]} 7... Qc7 {[%clk 0:02:51.9]} 8. Nf3 {[%clk
0:02:59.7]} 8... O-O {[%clk 0:02:48.7]} 9. Be3 {[%clk 0:02:58.5]} 9... Ng4
{[%clk 0:02:47.6]} 10. Qd2 {[%clk 0:02:44]} 10... Nxe3 {[%clk 0:02:47.3]} 11.
Qxe3 {[%clk 0:02:45.9]} 11... d6 {[%clk 0:02:47.6]} 12. Be2 {[%clk 0:02:45.8]}
12... a6 {[%clk 0:02:48]} 13. O-O {[%clk 0:02:47.1]} 13... b6 {[%clk 0:02:48.6]}
14. Rac1 {[%clk 0:02:48.2]} 14... Bb7 {[%clk 0:02:50.2]} 15. Nd5 {[%clk
0:02:46.8]} 15... exd5 {[%clk 0:02:43.9]} 16. cxd5 {[%clk 0:02:48.7]} 16... Qd7
{[%clk 0:02:44.7]} 17. dxc6 {[%clk 0:02:48.5]} 17... Bxc6 {[%clk 0:02:46.4]} 18.
Nd4 {[%clk 0:02:41.2]} 18... Bb7 {[%clk 0:02:45.6]} 19. Nf5 {[%clk 0:02:40.5]}
19... Bf6 {[%clk 0:02:46.6]} 20. Rfd1 {[%clk 0:02:38.8]} 20... d5 {[%clk
0:02:43]} 21. Bg4 {[%clk 0:02:23.8]} 21... Qd8 {[%clk 0:02:33.2]} 22. exd5
{[%clk 0:02:16.1]} 22... g6 {[%clk 0:02:28.9]} 23. Ng3 {[%clk 0:01:55.3]} 23...
Bxb2 {[%clk 0:02:27.9]} 24. Rb1 {[%clk 0:01:55.7]} 24... Re8 {[%clk 0:02:27.5]}
25. Qb3 {[%clk 0:01:47.7]} 25... Bg7 {[%clk 0:02:28]} 26. Qxb6 {[%clk
0:01:44.2]} 26... Qxb6 {[%clk 0:02:28.6]} 27. Rxb6 {[%clk 0:01:46.1]} 27... Bc8
{[%clk 0:02:19.2]} 28. Bxc8 {[%clk 0:01:40.3]} 28... Raxc8 {[%clk 0:02:18]} 29.
d6 {[%clk 0:01:40.2]} 29... Rc2 {[%clk 0:02:06.1]} 30. h3 {[%clk 0:01:27.8]}
30... h5 {[%clk 0:02:06.2]} 31. Rxa6 {[%clk 0:01:26.8]} 31... h4 {[%clk
0:02:06.3]} 32. Ne4 {[%clk 0:01:22.1]} 32... Rd8 {[%clk 0:01:18]} 33. Ra5 {[%clk
0:01:15.1]} 33... Rc4 {[%clk 0:01:15]} 34. Nc5 {[%clk 0:00:49.3]} 34... Rxd6
{[%clk 0:01:14.1]} 35. Rxd6 {[%clk 0:00:43.6]} 35... Rc1+ {[%clk 0:01:14.8]} 36.
Kh2 {[%clk 0:00:45.1]} 36... Be5+ {[%clk 0:01:15.3]} 37. g3 {[%clk 0:00:46.4]}
37... Bxd6 {[%clk 0:01:07.7]} 38. Ne4 {[%clk 0:00:47.1]} 38... hxg3+ {[%clk
0:01:04.5]} 39. fxg3 {[%clk 0:00:49]} 39... Rc2+ {[%clk 0:01:05.1]} 40. Kg1
{[%clk 0:00:49.2]} 40... Bc7 {[%clk 0:01:06]} 41. Nf6+ {[%clk 0:00:42.5]} 41...
Kf8 {[%clk 0:00:50.3]} 42. Ra8+ {[%clk 0:00:40.4]} 42... Ke7 {[%clk 0:00:48.1]}
43. Nd5+ {[%clk 0:00:41.7]} 43... Ke6 {[%clk 0:00:49.1]} 44. Nxc7+ {[%clk
0:00:41.2]} 44... Rxc7 {[%clk 0:00:50.6]} 45. Kg2 {[%clk 0:00:39.9]} 45... Ke5
{[%clk 0:00:50.3]} 46. h4 {[%clk 0:00:39.5]} 46... Rc1 {[%clk 0:00:43.4]} 47.
Re8+ {[%clk 0:00:39.2]} 47... Kf5 {[%clk 0:00:43.8]} 48. Re3 {[%clk 0:00:39]}
48... Ra1 {[%clk 0:00:43.5]} 49. Kf2 {[%clk 0:00:38.3]} 49... Kg4 {[%clk
0:00:42.7]} 50. Re4+ {[%clk 0:00:25.2]} 50... Kh3 {[%clk 0:00:41.3]} 51. Re3
{[%clk 0:00:24.5]} 51... Kg4 {[%clk 0:00:38.1]} 52. Re4+ {[%clk 0:00:25.3]}
52... Kh3 {[%clk 0:00:38.4]} 53. Re3 {[%clk 0:00:26]} 53... Kg4 {[%clk 0:00:39]}
54. Re4+ {[%clk 0:00:27.1]} 1/2-1/2